Workbook

Sheet Scénario 0
M1: Redémarrer | N1: Retour | O1: Suivant | P1: Commencer/ Continuer | Q1: Arrêter/ Mettre en pause
B2: Modèle de simulation financière de l’éducation – SAO TOMÉ-ET-PRINCIPE 2016-2030
B4: N.B. : Tous les montants sont indiqués en nouveaux dobras. | C4: Hypothèses | D4: Année de référence | E4: Années de projection ou de référence (si disponibles) | F4: Années de projection
B5: Année | C5: 2030 | D5: 2016 | E5: 2017 | F5: 2018 | G5: 2019 | H5: 2020 | I5: 2021 | J5: 2022 | K5: 2023 | L5: 2024 | M5: 2025 | N5: 2026 | O5: 2027 | P5: 2028 | Q5: 2029 | R5: 2030
B6: Ano escolar equivalente | D6: 2015-16 | E6: 2016-17 | F6: 2017-18 | G6: 2018-19 | H6: 2019-2020 | I6: 2020-21 | J6: 2021-22 | K6: 2022-23 | L6: 2023-24 | M6: 2024-25 | N6: 2025-26 | O6: 2026-27 | P6: 2027-28 | Q6: 2028-29 | R6: 20129-30
B8: Ressources publiques consacrées à l’éducation
B9: PIB (en millions de dobras) | D9: 7592.224433 | E9: =D9*(1+$C$10) -> 8009.796777 | F9: =E9*(1+$C$10) -> 8450.3356 | G9: 8915.104058 | H9: 9405.434781 | I9: 9922.733694 | J9: 10468.48405 | K9: 11044.25067 | L9: 11651.68446 | M9: 12292.5271 | N9: 12968.61609 | O9: 13681.88998 | P9: 14434.39393 | Q9: 15228.28559 | R9: 16065.8413
B10: Taux de croissance du PIB réel (%) | C10: 0.055
B11: Population totale | D11: 193706 | E11: 197698 | F11: 201783 | G11: 205965 | H11: 210238 | I11: 214617 | J11: 219075 | K11: 223650 | L11: 228320 | M11: 233094 | N11: 237960 | O11: 242919 | P11: 247953 | Q11: 253046 | R11: 258184
B12: Taux de change (euros/dobras) | C12: 24.5
B13: Taux de change (dollars É.-U./dobras) | C13: 22.17550857
B14: PIB par habitant
B15: En dobras | D15: =D9*10^9/D11/1000 -> 39194.57546 | E15: =E9*10^9/E11/1000 -> 40515.31516 | F15: 41878.33266 | G15: 43284.55834 | H15: 44737.08264 | I15: 46234.61186 | J15: 47784.93232 | K15: 49381.84963 | L15: 51032.25498 | M15: 52736.35144 | N15: 54499.1431 | O15: 56322.84826 | P15: 58214.23385 | Q15: =Q9*10^9/Q11/1000 -> 60179.91034 | R15: =R9*10^9/R11/1000 -> 62226.32425
B16: En euros | D16: =D15/$C$12 -> 1599.77859 | E16: =E15/$C$12 -> 1653.686333 | F16: 1709.319701 | G16: 1766.716667 | H16: 1826.003373 | I16: 1887.127015 | J16: 1950.405401 | K16: 2015.585699 | L16: 2082.949183 | M16: 2152.50414 | N16: 2224.45482 | O16: 2298.891766 | P16: 2376.091178 | Q16: 2456.322871 | R16: 2539.849969
B17: En dollars É.-U. | D17: =D15/$C$13 -> 1767.471322 | E17: =E15/$C$13 -> 1827.029808 | F17: 1888.494802 | G17: 1951.908259 | H17: 2017.409544 | I17: 2084.940317 | J17: 2154.851699 | K17: 2226.864357 | L17: 2301.289047 | M17: 2378.134926 | N17: 2457.627654 | O17: 2539.867263 | P17: 2625.158907 | Q17: 2713.800685 | R17: 2806.083299
B18: Ressources nationales du pays
B19: En millions de dobras | D19: 1129.731867 | E19: =E9*E20 -> 1209.716855 | F19: =F9*F20 -> 1295.082753 | G19: 1386.179507 | H19: 1483.379278 | I19: 1587.077831 | J19: 1697.696003 | K19: 1815.681262 | L19: 1941.50937 | M19: 2075.686135 | N19: 2218.749277 | O19: 2371.270414 | P19: 2533.85716 | Q19: 2707.155355 | R19: 2891.851434
B20: En pourcentage du PIB, taux d’utilisation des ressources économiques nationales | C20: 0.18 | D20: =D19/D9 -> 0.1488011685 | E20: =IF(E$5<$C21, D20+($C20-$D20)/($C21-$D$5),$C20) -> 0.1510296564 | F20: =IF(F$5<$C21, E20+($C20-$D20)/($C21-$D$5),$C20) -> 0.1532581444 | G20: 0.1554866324 | H20: 0.1577151203 | I20: 0.1599436083 | J20: 0.1621720963 | K20: 0.1644005842 | L20: 0.1666290722 | M20: 0.1688575602 | N20: 0.1710860481 | O20: 0.1733145361 | P20: 0.1755430241 | Q20: 0.177771512 | R20: 0.18
B21: Hypothèses annuelles | C21: 2030
B22: Ressources externes
B23: En millions de dobras | D23: 1038.047803 | E23: =E24*E9 -> 1051.243816 | F23: 1062.751296 | G23: 1072.344586 | H23: 1079.778315 | I23: 1084.785912 | J23: 1087.078016 | K23: 1086.340774 | L23: 1082.234023 | M23: 1074.38935 | N23: 1062.408004 | O23: 1045.858683 | P23: 1024.275152 | Q23: 997.1537106 | R23: 963.950478
B24: En pourcentage du PIB | C24: 0.06 | D24: =D23/D9 -> 0.1367251208 | E24: =D24+($C24-$D24)/($C$5-$D$5) -> 0.131244755 | F24: =E24+($C24-$D24)/($C$5-$D$5) -> 0.1257643893 | G24: 0.1202840235 | H24: 0.1148036577 | I24: 0.1093232919 | J24: 0.1038429262 | K24: 0.0983625604 | L24: 0.09288219463 | M24: 0.08740182886 | N24: 0.08192146309 | O24: 0.07644109731 | P24: 0.07096073154 | Q24: 0.06548036577 | R24: 0.06
B25: En pourcentage des recettes internes | D25: =D23/D19 -> 0.918844403 | E25: 0.8689998914 | F25: 0.8206049327 | G25: 0.7735972004 | H25: 0.7279178907 | I25: 0.683511477 | J25: 0.6403254849 | K25: 0.598310285 | L25: 0.557418903 | M25: 0.5176068443 | N25: 0.4788319327 | O25: 0.441054161 | P25: 0.4042355538 | Q25: 0.3683400395 | R25: 0.3333333333
B26: En pourcentage des recettes totales | D26: =D23/D28 -> 0.4788530021 | E26: =E23/E28 -> 0.46495449 | F26: 0.4507320166 | G26: 0.4361741213 | H26: 0.4212687967 | I26: 0.4060034555 | J26: 0.3903648945 | K26: 0.3743392573 | L26: 0.3579119927 | M26: 0.341067811 | N26: 0.3237906365 | O26: 0.3060635561 | P26: 0.2878687644 | Q26: 0.2691875038 | R26: 0.25
B27: Total des ressources en pourcentage du PIB | D27: =D24+D20 -> 0.2855262892 | E27: =E24+E20 -> 0.2822744114 | F27: 0.2790225336 | G27: 0.2757706558 | H27: 0.272518778 | I27: 0.2692669002 | J27: 0.2660150224 | K27: 0.2627631446 | L27: 0.2595112668 | M27: 0.256259389 | N27: 0.2530075112 | O27: 0.2497556334 | P27: 0.2465037556 | Q27: 0.2432518778 | R27: 0.24
B28: Total des recettes de l’État (en millions de dobras) | D28: =D19+D23 -> 2167.77967 | E28: 2260.960671 | F28: 2357.834049 | G28: 2458.524093 | H28: 2563.157593 | I28: 2671.863744 | J28: 2784.774019 | K28: 2902.022036 | L28: 3023.743394 | M28: 3150.075485 | N28: 3281.157281 | O28: 3417.129098 | P28: 3558.132313 | Q28: 3704.309066 | R28: 3855.801912
B29: Total des dépenses publiques
B30: En millions de dobras | D30: 2515.626807 | E30: =E28+(E37*E9) -> 2566.77628 | F30: 2615.942423 | G30: 2662.752344 | H30: 2706.79813 | I30: 2747.634126 | J30: 2784.774019 | K30: 2902.022036 | L30: 3023.743394 | M30: 3150.075485 | N30: 3281.157281 | O30: 3417.129098 | P30: 3558.132313 | Q30: 3704.309066 | R30: 3855.801912
B31: (dont intérêts de la dette) | D31: 56.474 | E31: =E32*E9 -> 58.18499242 | F31: =F32*F9 -> 59.91336016 | G31: 61.65583874 | H31: 63.40875206 | I31: 65.16797693 | J31: 66.92890505 | K31: 68.68640215 | L31: 70.43476398 | M31: 72.16766925 | N31: 73.87812894 | O31: 75.558432 | P31: 77.20008705 | Q31: 78.7937599 | R31: 80.3292065
B32: Intérêts de la dette en pourcentage du PIB | C32: 0.005 | D32: =D31/D9 -> 0.007438399707 | E32: =D32+($C32-$D32)/($C$5-$D$5) -> 0.007264228299 | F32: 0.007090056892 | G32: 0.006915885484 | H32: 0.006741714076 | I32: 0.006567542669 | J32: 0.006393371261 | K32: 0.006219199853 | L32: 0.006045028446 | M32: 0.005870857038 | N32: 0.005696685631 | O32: 0.005522514223 | P32: 0.005348342815 | Q32: 0.005174171408 | R32: 0.005
B33: En pourcentage du PIB | D33: =D30/D9 -> 0.3313425241 | E33: 0.3204546072 | F33: 0.3095666902 | G33: 0.2986787733 | H33: 0.2877908563 | I33: 0.2769029394 | J33: 0.2660150224 | K33: 0.2627631446 | L33: 0.2595112668 | M33: 0.256259389 | N33: 0.2530075112 | O33: 0.2497556334 | P33: 0.2465037556 | Q33: 0.2432518778 | R33: 0.24 | W33: 5141
B34: En pourcentage des ressources internes | D34: =D30/D19 -> 2.226746789 | E34: 2.12179922 | F34: 2.019903682 | G34: 1.920928949 | H34: 1.824751208 | I34: 1.731253548 | J34: 1.640325485 | K34: 1.598310285 | L34: 1.557418903 | M34: 1.517606844 | N34: 1.478831933 | O34: 1.441054161 | P34: 1.404235554 | Q34: 1.36834004 | R34: 1.333333333 | W34: 4965
B35: Déficit budgétaire
B36: En millions de dobras | D36: =D30-D28 -> 347.8471377 | E36: =E37*E9 -> 305.8156085 | F36: 258.1083736 | G36: 204.2282506 | H36: 143.6405363 | I36: 75.77038288 | J36: 0 | K36: 0 | L36: 0 | M36: 0 | N36: 0 | O36: 0 | P36: 0 | Q36: 0 | R36: 0 | W36: =W33+W34 -> 10106
B37: En pourcentage du PIB | C37: 0 | D37: =D36/D9 -> 0.04581623485 | E37: =IF(E$5<$C38, D37+($C37-$D37)/($C38-$D$5),$C37) -> 0.03818019571 | F37: 0.03054415657 | G37: 0.02290811743 | H37: 0.01527207828 | I37: 0.007636039142 | J37: 0 | K37: 0 | L37: 0 | M37: 0 | N37: 0 | O37: 0 | P37: 0 | Q37: 0 | R37: 0
B38: Hypothèses annuelles | C38: 2022
B39: Ressources publiques consacrées à l’éducation en millions de dobras | D39: 438.6535632 | E39: =E40*(E30-E31) -> 456.5132061 | F39: =F40*(F30-F31) -> 474.3579049 | G39: 492.0960985 | H39: 509.6242253 | I39: 526.8255714 | J39: 543.5690227 | K39: 566.6671268 | L39: 590.661726 | M39: 615.5815631 | N39: 641.4558305 | O39: 668.3141331 | P39: 696.1864451 | Q39: 725.1030612 | R39: =R40*(R30-R31) -> 755.0945411
B40: En pourcentage du total des dépenses publiques (hors intérêts de la dette) | C40: 0.2 | D40: =D39/(D30-D31) -> 0.178375887 | E40: =IF(E$5<$C41, D40+($C40-$D40)/($C41-$D$5),$C40) -> 0.1819799058 | F40: 0.1855839246 | G40: 0.1891879435 | H40: 0.1927919623 | I40: 0.1963959812 | J40: 0.2 | K40: 0.2 | L40: 0.2 | M40: 0.2 | N40: 0.2 | O40: 0.2 | P40: 0.2 | Q40: 0.2 | R40: 0.2
B41: Hypothèses annuelles | C41: 2022
B43: Dépenses courantes d’éducation
A45: X | B45: Enseignement préscolaire (garderies et maternelles)
B46: Population d’âge scolaire (0-3 ans) | D46: 19155 | E46: 19501 | F46: 19851 | G46: 20207 | H46: 20568 | I46: 20935 | J46: 21307 | K46: 21691 | L46: 22085 | M46: 22486 | N46: 22890 | O46: 23290 | P46: 23667 | Q46: 24010 | R46: 24313
B47: Population d’âge scolaire (4-5 ans) | D47: 11025 | E47: 10143 | F47: 9344 | G47: 9518 | H47: 9693 | I47: 9869 | J47: 10049 | K47: 10231 | L47: 10416 | M47: 10603 | N47: 10795 | O47: 10995 | P47: 11201 | Q47: 11407 | R47: 11611
B48: Taux de scolarisation des 0-3 ans (%) | C48: 0 | D48: =SUM(D53:D54)/D46 -> 0.3186635343 | E48: =IF(E$5<$C49, D48+($C48-$D48)/($C49-$D$5),$C48) -> 0.2655529453 | F48: =IF(F$5<$C49, E48+($C48-$D48)/($C49-$D$5),$C48) -> 0.2124423562 | G48: 0.1593317672 | H48: 0.1062211781 | I48: 0.05311058905 | J48: 0 | K48: 0 | L48: 0 | M48: 0 | N48: 0 | O48: 0 | P48: 0 | Q48: 0 | R48: 0
B49: Année de l’objectif intermédiaire | C49: 2022
B50: Taux de scolarisation des 4-5 ans (%) | C50: 1 | D50: =SUM(D55:D56)/D47 -> 0.5927437642 | E50: =IF(E$5<$C51, D50+($C50-$D50)/($C51-$D$5),$C50) -> 0.6606198035 | F50: =IF(F$5<$C51, E50+($C50-$D50)/($C51-$D$5),$C50) -> 0.7284958428 | G50: =IF(G$5<$C51, F50+($C50-$D50)/($C51-$D$5),$C50) -> 0.7963718821 | H50: 0.8642479214 | I50: 0.9321239607 | J50: 1 | K50: 1 | L50: 1 | M50: 1 | N50: 1 | O50: 1 | P50: 1 | Q50: 1 | R50: 1
B51: Année de l’objectif intermédiaire | C51: 2022
B52: Nombre d’élèves âgés de 0 à 3 ans | D52: =D53+D54 -> 6104 | E52: =E48*E46 -> 5178.547986 | F52: 4217.193213 | G52: 3219.617019 | H52: 2184.757191 | I52: 1111.870182 | J52: 0 | K52: 0 | L52: 0 | M52: 0 | N52: 0 | O52: 0 | P52: 0 | Q52: 0 | R52: 0
B53: Nombre d’élèves âgés de 0 à 2 ans | D53: =D58-D57 -> 3412
B54: Nombre d’élèves âgés de 3 ans | D54: 2692
B55: Nombre d’élèves âgés de 4 ans | D55: 3299
B56: Nombre d’élèves âgés de 5 ans | D56: 3236
B57: Nombre d’élèves âgés de 4 à 5 ans | D57: =SUM(D55:D56) -> 6535 | E57: =E50*E47 -> 6700.666667 | F57: =F50*F47 -> 6807.065155 | G57: 7579.867574 | H57: 8377.155102 | I57: 9199.131368 | J57: 10049 | K57: 10231 | L57: 10416 | M57: 10603 | N57: 10795 | O57: 10995 | P57: 11201 | Q57: 11407 | R57: 11611
B58: Nombre total d’élèves | D58: 9947 | E58: 11180 | F58: =F57+F52 -> 11024.25837 | G58: =G57+G52 -> 10799.48459 | H58: 10561.91229 | I58: 10311.00155 | J58: 10049 | K58: 10231 | L58: 10416 | M58: 10603 | N58: 10795 | O58: 10995 | P58: 11201 | Q58: 11407 | R58: 11611
B59: Enseignement privé
B60: Nombre d’élèves scolarisés dans l’enseignement privé (4-5 ans) | D60: 884 | E60: 1074 | F60: =F61*F58 -> 1022.765498 | G60: 966.3786175 | H60: 910.3677405 | I60: 854.8144398 | J60: 800.0293189 | K60: 780.8556478 | L60: 760.7033989 | M60: 739.4732175 | N60: 717.3447163 | O60: 694.4580245 | P60: 670.6144327 | Q60: 645.4152313 | R60: 618.7538398
B61: Pourcentage d’élèves scolarisés dans le privé | C61: 0.05 | D61: =D60/D58 -> 0.08887101639 | E61: =E60/E58 -> 0.09606440072 | F61: =E61+($C$61-$E$61)/($C$5-$D$5) -> 0.09277408638 | G61: 0.08948377204 | H61: 0.08619345771 | I61: 0.08290314337 | J61: 0.07961282903 | K61: 0.07632251469 | L61: 0.07303220036 | M61: 0.06974188602 | N61: 0.06645157168 | O61: 0.06316125735 | P61: 0.05987094301 | Q61: 0.05658062867 | R61: 0.05329031434
B62: Enseignement public
B63: Nombre d’élèves | D63: =D58-D60 -> 9063 | E63: 10106 | F63: 10001.49287 | G63: 9833.105975 | H63: 9651.544553 | I63: 9456.18711 | J63: 9248.970681 | K63: 9450.144352 | L63: 9655.296601 | M63: 9863.526783 | N63: 10077.65528 | O63: 10300.54198 | P63: 10530.38557 | Q63: 10761.58477 | R63: 10992.24616
B64: Nombre d’enseignants | E64: 61 | F64: =F63/F67 -> 67.78940255 | G64: =G63/G67 -> 75.98807445 | H64: 86.74075754 | I64: 101.5326716 | J64: 123.3196091 | K64: 126.0019247 | L64: 128.737288 | M64: 131.5136904 | N64: 134.3687371 | O64: 137.3405597 | P64: 140.4051409 | Q64: 143.4877969 | R64: 146.5632821
B65: Nombre de moniteurs et d’auxiliaires | D65: 542 | E65: 530 | F65: =F63/F68 -> 530.4610541 | G65: =G63/G68 -> 527.5057864 | H65: 523.7670598 | I65: 519.1831899 | J65: 513.8317045 | K65: 525.0080196 | L65: 536.4053667 | M65: 547.9737101 | N65: 559.869738 | O65: 572.252332 | P65: 585.0214204 | Q65: 597.8658205 | R65: 610.6803422
B66: Nombre total d’enseignants, de moniteurs et d’assistants | D66: =D65+D64 -> 542 | E66: =E65+E64 -> 591 | F66: =F65+F64 -> 598.2504566 | G66: =G65+G64 -> 603.4938608 | H66: 610.5078174 | I66: 620.7158614 | J66: 637.1513136 | K66: 651.0099443 | L66: 665.1426547 | M66: 679.4874006 | N66: 694.2384751 | O66: 709.5928916 | P66: 725.4265613 | Q66: 741.3536174 | R66: 757.2436244
B67: Nombre d’élèves par enseignant | C67: 75 | E67: =E63/E64 -> 165.6721311 | F67: =IF(F$5<$C70, E67+($C67-$E67)/($C70-$E$5),$C67) -> 147.5377049 | G67: 129.4032787 | H67: 111.2688525 | I67: 93.13442623 | J67: 75 | K67: 75 | L67: 75 | M67: 75 | N67: 75 | O67: 75 | P67: 75 | Q67: 75 | R67: 75
B68: Nombre d’élèves par moniteur et auxiliaire | C68: 18 | D68: =D63/D65 -> 16.72140221 | E68: =E63/E65 -> 19.06792453 | F68: =IF(F$5<$C70, E68+($C68-$E68)/($C70-$E$5),$C68) -> 18.85433962 | G68: =IF(G$5<$C70, F68+($C68-$E68)/($C70-$E$5),$C68) -> 18.64075472 | H68: 18.42716981 | I68: 18.21358491 | J68: 18 | K68: 18 | L68: 18 | M68: 18 | N68: 18 | O68: 18 | P68: 18 | Q68: 18 | R68: 18
B69: Nombre d’élèves par enseignant, moniteur et assistant | E69: =E63/E66 -> 17.0998308 | F69: =F63/F66 -> 16.71790261 | G69: 16.2936305 | H69: 15.80904335 | I69: 15.23432491 | J69: 14.51612903 | K69: 14.51612903 | L69: 14.51612903 | M69: 14.51612903 | N69: 14.51612903 | O69: 14.51612903 | P69: 14.51612903 | Q69: 14.51612903 | R69: 14.51612903
B70: Année de l’objectif intermédiaire | C70: 2022
B71: Nombre d’élèves par classe | E71: =E69*2 -> 34.19966159 | F71: =F69*2 -> 33.43580522 | G71: =G69*2 -> 32.58726099 | H71: 31.61808671 | I71: 30.46864982 | J71: 29.03225806 | K71: 29.03225806 | L71: 29.03225806 | M71: 29.03225806 | N71: 29.03225806 | O71: 29.03225806 | P71: 29.03225806 | Q71: 29.03225806 | R71: 29.03225806
B72: Nombre de classes | E72: =E63/E71 -> 295.5 | F72: =F63/F71 -> 299.1252283 | G72: =G63/G71 -> 301.7469304 | H72: 305.2539087 | I72: 310.3579307 | J72: 318.5756568 | K72: 325.5049721 | L72: 332.5713274 | M72: 339.7437003 | N72: 347.1192375 | O72: 354.7964458 | P72: 362.7132807 | Q72: 370.6768087 | R72: 378.6218122
B73: Besoins en enseignants, moniteurs et assistants
B74: Taux d’attrition des enseignants | C74: 0.015
B75: Nombre d’enseignants après attrition | F75: =E64*(1-$C$74) -> 60.085 | G75: 66.77256151 | H75: 74.84825333 | I75: 85.43964618 | J75: 100.0096815 | K75: 121.4698149 | L75: 124.1118958 | M75: 126.8062287 | N75: 129.5409851 | O75: 132.3532061 | P75: 135.2804513 | Q75: 138.2990638 | R75: 141.33548
B76: Nouveaux enseignants | F76: =IF((F64-F75)<0,0,(F64-F75)) -> 7.704402551 | G76: 9.215512939 | H76: 11.8925042 | I76: 16.09302539 | J76: 23.30992758 | K76: 4.532109751 | L76: 4.625392189 | M76: 4.70746174 | N76: 4.827752039 | O76: 4.987353614 | P76: 5.12468962 | Q76: 5.188733132 | R76: 5.227802174
B77: Taux d’attrition des moniteurs et des auxiliaires | C77: 0.015
B78: Nombre de moniteurs et d’auxiliaires après attrition | E78: =D65*(1-$C$77) -> 533.87 | F78: 522.05 | G78: 522.5041383 | H78: 519.5931996 | I78: 515.9105539 | J78: 511.395442 | K78: 506.1242289 | L78: 517.1328993 | M78: 528.3592862 | N78: 539.7541045 | O78: 551.4716919 | P78: 563.668547 | Q78: 576.2460991 | R78: 588.8978332
B79: Nouveaux moniteurs et auxiliaires | E79: =IF((E65-E78)>=0,(E65-E78),0) -> 0 | F79: 8.411054074 | G79: 5.001648095 | H79: 4.173860255 | I79: 3.272635944 | J79: 2.436262487 | K79: 18.88379063 | L79: 19.27246746 | M79: 19.61442391 | N79: 20.11563349 | O79: 20.78064006 | P79: 21.35287342 | Q79: 21.61972138 | R79: 21.78250906
B80: Rémunération moyenne des éducateurs, moniteurs et assistants (hors heures supplémentaires)
B81: Rémunération annuelle moyenne en PIB par habitant | D81: =D82/D15 -> 1.553960978 | E81: =E82/E15 -> 1.536965408 | F81: 1.519507367 | G81: 1.501649423 | H81: 1.483378558 | I81: 1.464829562 | J81: 1.445845374 | K81: 1.426706795 | L81: 1.407290693 | M81: 1.38767686 | N81: 1.367816215 | O81: 1.347740945 | P81: 1.327379933 | Q81: 1.306685279 | R81: 1.28562953
B82: Rémunération annuelle moyenne (en dobras) | C82: 80000 | D82: 60906.84082 | E82: =D82+($C82-$D82)/($C5-$D5) -> 62270.6379 | F82: =E82+($C82-$D82)/($C5-$D5) -> 63634.43499 | G82: 64998.23207 | H82: 66362.02916 | I82: 67725.82624 | J82: 69089.62333 | K82: 70453.42041 | L82: 71817.21749 | M82: 73181.01458 | N82: 74544.81166 | O82: 75908.60875 | P82: 77272.40583 | Q82: 78636.20292 | R82: 80000
B83: Masse salariale des enseignants, moniteurs et assistants (en milliers de dobras, hors heures supplémentaires) | D83: =(D82*D66)/10^3 -> 33011.50772 | E83: 36801.947 | F83: 38069.32979 | G83: 39226.03402 | H83: 40514.53758 | I83: 42038.49458 | J83: 44020.54426 | K83: 45865.87729 | L83: 47768.6947 | M83: 49725.57737 | N83: 51751.87638 | O83: 53864.20918 | P83: 56055.45565 | Q83: 58297.23349 | R83: 60579.48995
B84: Heures supplémentaires (en milliers de dobras) | D84: 2316.1596 | E84: =E85*E83 -> 2240.472575 | F84: =F85*F83 -> 2139.350592 | G84: 2020.656863 | H84: 1897.30159 | I84: 1771.801843 | J84: 1649.190708 | K84: 1503.533916 | L84: 1342.208884 | M84: 1164.327951 | N84: 969.4191094 | O84: 756.7405863 | P84: 525.0170013 | Q84: 273.0067784 | R84: 0
B85: Heures supplémentaires en pourcentage de la masse salariale (heures supplémentaires comprises) | C85: 0 | D85: =D84/(D84+D83) -> 0.06556220027 | E85: =D85+($C85-D85)/($C$5-D$5) -> 0.06087918596 | F85: =E85+($C85-E85)/($C$5-E$5) -> 0.05619617166 | G85: 0.05151315735 | H85: 0.04683014305 | I85: 0.04214712874 | J85: 0.03746411444 | K85: 0.03278110013 | L85: 0.02809808583 | M85: 0.02341507152 | N85: 0.01873205722 | O85: 0.01404904291 | P85: 0.009366028609 | Q85: =P85+($C85-P85)/($C$5-P$5) -> 0.004683014305 | R85: =Q85+($C85-Q85)/($C$5-Q$5) -> 0
B86: Masse salariale des enseignants, des moniteurs et des assistants (en milliers de dobras, heures supplémentaires comprises) | D86: =D83/(1-D85) -> 35327.66732 | E86: =E83/(1-E85) -> 39187.65983 | F86: =F83/(1-F85) -> 40336.06206 | G86: 41356.43454 | H86: 42505.0554 | I86: 43888.25866 | J86: 45733.92527 | K86: 47420.36916 | L86: 49149.7074 | M86: 50917.82181 | N86: 52739.80135 | O86: 54631.73274 | P86: 56585.43646 | Q86: =Q83/(1-Q85) -> 58571.52478 | R86: =R83/(1-R85) -> 60579.48995
B87: Rémunération moyenne (heures supplémentaires comprises) en PIB par habitant | D87: =D88/D15 -> 1.66299028 | E87: 1.636600302 | F87: 1.609982203 | G87: 1.583205329 | H87: 1.55625836 | I87: 1.529284513 | J87: 1.502121007 | K87: 1.475060914 | L87: 1.447976049 | M87: 1.42094847 | N87: 1.393927342 | O87: 1.366945217 | P87: 1.339929753 | Q87: 1.312833296 | R87: 1.28562953
B88: Rémunération moyenne (heures supplémentaires comprises) en dobras | D88: =(D86*10^3)/D66 -> 65180.19801 | E88: 66307.37704 | F88: 67423.37028 | G88: 68528.34341 | H88: 69622.45886 | I88: 70705.8759 | J88: 71778.75065 | K88: 72841.23627 | L88: 73893.48292 | M88: 74935.6379 | N88: 75967.84569 | O88: 76990.24805 | P88: 78002.98401 | Q88: 79006.19003 | R88: 80000
B89: Masse salariale des autres personnels préscolaires (en milliers de dobras) | D89: 12078.57858 | E89: =E90*E86 -> 9831.214995 | F89: =F90*F86 -> 9961.466236 | G89: 10051.61156 | H89: 10164.43912 | I89: 10323.45524 | J89: 10578.6165 | K89: 10783.12543 | L89: 10984.02069 | M89: 11179.89446 | N89: 11373.54549 | O89: 11567.74759 | P89: 11759.97956 | Q89: 11943.52361 | R89: 12115.89799
B90: Masse salariale des autres personnels en pourcentage de la masse salariale totale (personnel enseignant et non enseignant) | C90: 0.2 | D90: =D89/(D89+D86) -> 0.2547887593 | E90: =D90+($C90-D90)/($C$5-D$5) -> 0.2508752765 | F90: 0.2469617937 | G90: 0.2430483109 | H90: 0.2391348281 | I90: 0.2352213453 | J90: 0.2313078625 | K90: 0.2273943797 | L90: 0.2234808968 | M90: 0.219567414 | N90: 0.2156539312 | O90: 0.2117404484 | P90: 0.2078269656 | Q90: =P90+($C90-P90)/($C$5-P$5) -> 0.2039134828 | R90: =Q90+($C90-Q90)/($C$5-Q$5) -> 0.2
B91: Masse salariale totale du personnel enseignant, non enseignant et administratif (en milliers de dobras) | D91: =D89+D86 -> 47406.2459 | E91: =E86/(1-E90) -> 52311.2622 | F91: =F86/(1-F90) -> 53564.42969 | G91: 54635.5007 | H91: 55864.10966 | I91: 57386.8771 | J91: 59495.76304 | K91: 61377.19933 | L91: 63294.91084 | M91: 65243.07509 | N91: 67240.47388 | O91: 69306.7818 | P91: 71430.65215 | Q91: 73574.32077 | R91: 75724.36244
B92: Dépenses administratives et pédagogiques
B93: Dépenses éducatives dans les établissements (en milliers de dobras) | D93: 53.06287369 | E93: =E94*E91 -> 484.721492 | F93: =F94*F91 -> 932.7110727 | G93: 1396.464888 | H93: 1882.980305 | I93: 2401.825615 | J93: 2974.788152 | K93: 3068.859967 | L93: 3164.745542 | M93: 3262.153754 | N93: 3362.023694 | O93: 3465.33909 | P93: 3571.532608 | Q93: 3678.716039 | R93: 3786.218122
B94: Dépenses pédagogiques en pourcentage de la masse salariale totale | C94: 0.05 | D94: =D93/D91 -> 0.001119322416 | E94: =IF(E$5<$C95, D94+($C94-$D94)/($C95-$D$5),$C94) -> 0.009266102013 | F94: 0.01741288161 | G94: 0.02555966121 | H94: 0.03370644081 | I94: 0.0418532204 | J94: 0.05 | K94: 0.05 | L94: 0.05 | M94: 0.05 | N94: 0.05 | O94: 0.05 | P94: 0.05 | Q94: 0.05 | R94: 0.05
B95: Année de l’objectif intermédiaire | C95: 2022
B96: Par élève | D96: =D93/D63 -> 0.00585489062 | E96: =E93*10^3/E63 -> 47.96373362 | F96: 93.25718519 | G96: 142.016662 | H96: 195.0962662 | I96: 253.9951449 | J96: 321.6345099 | K96: 324.7421258 | L96: 327.7730009 | M96: 330.7289397 | N96: 333.6116983 | O96: 336.4229861 | P96: 339.1644669 | Q96: 341.8377607 | R96: 344.4444444
B97: Dépenses administratives (en milliers de dobras) | D97: 3024.269221 | E97: =E98*E91 -> 3216.91341 | F97: =F98*F91 -> 3170.826473 | G97: 3108.61635 | H97: 3050.082474 | I97: 3001.283381 | J97: 2974.788152 | K97: 3068.859967 | L97: 3164.745542 | M97: 3262.153754 | N97: 3362.023694 | O97: 3465.33909 | P97: 3571.532608 | Q97: 3678.716039 | R97: 3786.218122
B98: Dépenses administratives en pourcentage de la masse salariale totale | C98: 0.05 | D98: =D97/D91 -> 0.06379474189 | E98: =IF(E$5<$C99, D98+($C98-$D98)/($C99-$D$5),$C98) -> 0.06149561824 | F98: 0.05919649459 | G98: 0.05689737094 | H98: 0.0545982473 | I98: 0.05229912365 | J98: 0.05 | K98: 0.05 | L98: 0.05 | M98: 0.05 | N98: 0.05 | O98: 0.05 | P98: 0.05 | Q98: 0.05 | R98: 0.05
B99: Année de l’objectif intermédiaire | C99: 2022
B100: Dépenses pédagogiques et administratives (en milliers de dobras) | D100: =D97+D93 -> 3077.332095 | E100: =E97+E93 -> 3701.634902 | F100: =F97+F93 -> 4103.537545 | G100: 4505.081238 | H100: 4933.06278 | I100: 5403.108996 | J100: 5949.576304 | K100: 6137.719933 | L100: 6329.491084 | M100: 6524.307509 | N100: 6724.047388 | O100: 6930.67818 | P100: 7143.065215 | Q100: 7357.432077 | R100: 7572.436244
B101: Dépenses consacrées aux enfants présentant des besoins éducatifs particuliers
B102: Nombre d’enfants âgés de 4 à 5 ans présentant des besoins éducatifs particuliers | D102: 174 | E102: =E103*E47 -> 184.8707143 | F102: 193.145656 | G102: 220.0054713 | H102: 247.7413994 | I102: 276.3607726 | J102: 305.9622643 | K102: 336.5094218 | L102: 368.0522449 | M102: 400.5749514 | N102: 434.2128766 | O102: 469.1306851 | P102: 505.2968124 | Q102: 542.4699174 | R102: 580.55
B103: Pourcentage d’enfants âgés de 4 à 5 ans présentant des besoins éducatifs particuliers | C103: 0.05 | D103: =D102/D47 -> 0.01578231293 | E103: =D103+($C103-$D103)/($C5-$D$5) -> 0.01822643343 | F103: 0.02067055394 | G103: 0.02311467444 | H103: 0.02555879495 | I103: 0.02800291545 | J103: 0.03044703596 | K103: 0.03289115646 | L103: 0.03533527697 | M103: 0.03777939747 | N103: 0.04022351798 | O103: 0.04266763848 | P103: 0.04511175899 | Q103: 0.04755587949 | R103: 0.05
B104: Subvention moyenne par enfant présentant des besoins éducatifs particuliers en pourcentage du PIB par habitant | C104: 0.01 | D104: 0 | E104: =IF(E$5<$C105, D104+($C104-$D104)/($C105-$D$5),$C104) -> 0.0025 | F104: 0.005 | G104: 0.0075 | H104: 0.01 | I104: 0.01 | J104: 0.01 | K104: 0.01 | L104: 0.01 | M104: 0.01 | N104: 0.01 | O104: 0.01 | P104: 0.01 | Q104: 0.01 | R104: 0.01
B105: Année de l’objectif intermédiaire | C105: 2020
B106: Dotation annuelle allouée aux enfants présentant des besoins éducatifs particuliers (en dobras) | E106: =E104*E15 -> 101.2882879 | F106: 209.3916633 | G106: 324.6341875 | H106: 447.3708264 | I106: 462.3461186 | J106: 477.8493232 | K106: 493.8184963 | L106: 510.3225498 | M106: 527.3635144 | N106: 544.991431 | O106: 563.2284826 | P106: 582.1423385 | Q106: 601.7991034 | R106: 622.2632425
B107: Dépenses consacrées aux enfants présentant des besoins éducatifs particuliers (en milliers de dobras) | E107: =(E106*E102)/1000 -> 18.72523813 | F107: =(F106*F102)/1000 -> 40.44309017 | G107: 71.42129744 | H107: 110.8322746 | I107: 127.7743305 | J107: 146.2038609 | K107: 166.1745766 | L107: 187.8253601 | M107: 211.2486141 | N107: 236.642297 | O107: 264.2277639 | P107: 294.154668 | Q107: 326.4579099 | R107: 361.2549254
B108: Dépenses sociales (hors bourses)
B109: Dépenses de restauration scolaire hors frais de personnel (en milliers de dobras) | C109: =(3751440+5093760+1078000+98230)/1000 -> 10021.43
B110: Nombre d’enfants bénéficiaires (y compris dans l’enseignement préscolaire) | C110: =D63+D143 -> 45457
B111: Coût unitaire par enfant bénéficiaire hors frais de personnel | C111: 2
B112: Nombre de jours/repas annuels pris en charge par l’État | C112: 180
B113: Dépenses totales d’approvisionnement alimentaire des cantines scolaires hors frais de personnel (en milliers de dobras) | D113: 537.497297 | E113: =(E63*$C$112*$C$111)/10^3 -> 3638.16 | F113: =(F63*$C$112*$C$111)/10^3 -> 3600.537433 | G113: 3539.918151 | H113: 3474.556039 | I113: 3404.22736 | J113: 3329.629445 | K113: 3402.051967 | L113: 3475.906776 | M113: 3550.869642 | N113: 3627.955902 | O113: 3708.195111 | P113: 3790.938804 | Q113: 3874.170517 | R113: 3957.208618
B114: Coût par élève de l’enseignement public
B115: Coût unitaire en PIB par habitant | D115: =D116/D15 -> 0.1436321504 | E115: 0.1457323399 | F115: 0.1463759242 | G115: 0.1474359246 | H115: 0.1491089688 | I115: 0.1516960461 | J115: 0.1559438601 | K115: 0.1523213725 | L115: 0.1487384619 | M115: 0.1452025711 | N115: 0.1417075353 | O115: 0.1382557482 | P115: 0.134839053 | Q115: 0.1314519443 | R115: 0.1280911639
B116: Coût unitaire en dobras | D116: =D117*10^3/D63 -> 5629.601158 | E116: 5904.391682 | F116: 6129.97965 | G116: 6381.698879 | H116: 6670.700259 | I116: 7013.607811 | J116: 7451.7668 | K116: 7521.911111 | L116: 7590.459111 | M116: 7657.453821 | N116: 7722.939243 | O116: 7786.957525 | P116: 7849.552166 | Q116: 7910.766221 | R116: 7970.642301 | S116: =R116/D116 -> 1.415844938
B117: Total des frais de fonctionnement de l’enseignement préscolaire (en milliers de dobras) | D117: =D91+D100+D107+D113 -> 51021.07529 | E117: =E91+E100+E107+E113 -> 59669.78234 | F117: 61308.94776 | G117: 62751.92138 | H117: 64382.56075 | I117: 66321.98778 | J117: 68921.17265 | K117: 71083.14581 | L117: 73288.13406 | M117: 75529.50085 | N117: 77829.11947 | O117: 80209.88285 | P117: 82658.81084 | Q117: 85132.38128 | R117: 87615.26222 | S117: =R117/D117 -> 1.717236685
A119: X | B119: Ensino basico (1° e 2° ciclo)
B120: População
B121: População escolarizável 1° ciclo (6-9 anos) | D121: 21827 | E121: 21988 | F121: 21998 | G121: 21123 | H121: 20333 | I121: 19629 | J121: 19007 | K121: 19359 | L121: 19714 | M121: 20074 | N121: 20440 | O121: 20811 | P121: 21188 | Q121: 21577 | R121: 21976
B122: População escolarizável 2° ciclo (10-11 anos) | D122: 10339 | E122: 10564 | F122: 10817 | G122: 10972 | H122: 10975 | I122: 10982 | J122: 10990 | K122: 10112 | L122: 9317 | M122: 9492 | N122: 9668 | O122: 9845 | P122: 10025 | Q122: 10208 | R122: 10394
B123: População escolarizável 6 anos | D123: 5500 | E123: 5503 | F123: 5508 | G123: 4623 | H123: 4710 | I123: 4797 | J123: 4885 | K123: 4974 | L123: 5065 | M123: 5157 | N123: 5250 | O123: 5345 | P123: 5442 | Q123: 5545 | R123: 5649
B124: População escolarizável 11 anos | D124: 5105 | E124: 5231 | F124: 5330 | G124: 5484 | H124: 5485 | I124: 5488 | J124: 5491 | K124: 5497 | L124: 4614 | M124: 4701 | N124: 4789 | O124: 4877 | P124: 4966 | Q124: 5057 | R124: 5150
B125: Taxas de acesso, de sobrevivencia e de transiçao
B126: Taxa de acesso 1°a | C126: 1 | D126: =E126 -> 1.02 | E126: 1.02 | F126: =IF(F$5<$C133, E126+($C126-$E126)/($C133-$E$5),$C126) -> 1.016 | G126: 1.012 | H126: 1.008 | I126: 1.004 | J126: 1 | K126: 1 | L126: 1 | M126: 1 | N126: 1 | O126: 1 | P126: 1 | Q126: 1 | R126: 1
B127: Taxa de sobrevivência 1° ciclo (1°a - 4°a) | C127: 1 | D127: 0.949708969 | E127: =E128/E126 -> 0.949708969 | F127: =IF(F$5<$C133, E127+($C127-$E127)/($C133-$E$5),$C127) -> 0.9597671752 | G127: 0.9698253814 | H127: 0.9798835876 | I127: 0.9899417938 | J127: 1 | K127: 1 | L127: 1 | M127: 1 | N127: 1 | O127: 1 | P127: 1 | Q127: 1 | R127: 1
B128: Taxa de acesso 4°a | D128: 0.9687031484 | E128: 0.9687031484 | F128: =E126*F127 -> 0.9789625187 | G128: =F126*G127 -> 0.9853425875 | H128: 0.9916421907 | I128: 0.9978613282 | J128: 1.004 | K128: 1 | L128: 1 | M128: 1 | N128: 1 | O128: 1 | P128: 1 | Q128: 1 | R128: 1
B129: Taxa de transição 1° ciclo - 2° ciclo (4°a - 5°a) | C129: 1 | D129: 0.9806925904 | E129: =E130/E128 -> 0.9806925904 | F129: =IF(F$5<$C133, E129+($C129-$E129)/($C133-$E$5),$C129) -> 0.9845540724 | G129: 0.9884155543 | H129: 0.9922770362 | I129: 0.9961385181 | J129: 1 | K129: 1 | L129: 1 | M129: 1 | N129: 1 | O129: 1 | P129: 1 | Q129: 1 | R129: 1
B130: Taxa de acesso 5°a | D130: 0.95 | E130: 0.95 | F130: =E128*F129 -> 0.9537406297 | G130: =F128*G129 -> 0.9676217806 | H130: 0.9777328224 | I130: 0.9878129823 | J130: 0.9978613282 | K130: 1.004 | L130: 1 | M130: 1 | N130: 1 | O130: 1 | P130: 1 | Q130: 1 | R130: 1
B131: Taxa de sobrevivência 2° ciclo (5°a - 6°a) | C131: 1 | D131: 0.974689417 | E131: =E132/E130 -> 0.974689417 | F131: =IF(F$5<$C133, E131+($C131-$E131)/($C133-$E$5),$C131) -> 0.9797515336 | G131: 0.9848136502 | H131: 0.9898757668 | I131: 0.9949378834 | J131: 1 | K131: 1 | L131: 1 | M131: 1 | N131: 1 | O131: 1 | P131: 1 | Q131: 1 | R131: 1
B132: Taxa de acesso 6°a | D132: 0.9259549461 | E132: 0.9259549461 | F132: =E130*F131 -> 0.9307639569 | G132: =F130*G131 -> 0.9392567909 | H132: 0.957825352 | I132: 0.9727834248 | J132: 0.9878129823 | K132: 0.9978613282 | L132: 1.004 | M132: 1 | N132: 1 | O132: 1 | P132: 1 | Q132: 1 | R132: 1
B133: Ano do meta intermediário | C133: 2022
B134: % repetentes
B135: 1° ciclo (1° - 4° ano) | C135: 0.05 | D135: 0.1116308321 | E135: 0.1149951124 | F135: =IF(F$5<$C136, E135+($C135-$D135)/($C136-$D$5),$C135) -> 0.1105929101 | G135: 0.1061907078 | H135: 0.1017885055 | I135: 0.09738630324 | J135: 0.09298410094 | K135: 0.08858189865 | L135: 0.08417969635 | M135: 0.07977749406 | N135: 0.07537529177 | O135: 0.07097308947 | P135: 0.06657088718 | Q135: 0.06216868488 | R135: 0.05
B136: Ano do meta intermediário | C136: 2030
B137: 2° ciclo (5° - 6° ano) | C137: 0.05 | D137: 0.1911804985 | E137: 0.1392097264 | F137: =IF(F$5<$C138, E137+($C137-$D137)/($C138-$D$5),$C137) -> 0.1291254051 | G137: =IF(G$5<$C138, F137+($C137-$D137)/($C138-$D$5),$C137) -> 0.1190410838 | H137: 0.1089567625 | I137: 0.09887244116 | J137: 0.08878811984 | K137: 0.07870379852 | L137: 0.0686194772 | M137: 0.05853515588 | N137: 0.04845083456 | O137: 0.03836651323 | P137: 0.02828219191 | Q137: 0.01819787059 | R137: 0.05
B138: Ano do meta intermediário | C138: 2030
B139: Total ensino basico | D139: 0.1355717975 | E139: 0.1225128067 | F139: =(F135*F141+F137*F142)/F143 -> 0.1165557618 | G139: 0.1104920693 | H139: 0.1042614014 | I139: 0.09791293018 | J139: 0.09146023868 | K139: 0.08521445015 | L139: 0.07923613444 | M139: 0.07306299545 | N139: 0.06689716379 | O139: 0.06074536069 | P139: 0.05460646016 | Q139: 0.04848271224 | R139: 0.05
B140: Numero de alunos
B141: 1° ciclo (1° - 4° ano) | D141: 25441 | E141: 25575 | F141: =F146*F121 -> 24671.03421 | G141: 23601.15734 | H141: 22633.15762 | I141: 21767.08383 | J141: 20997.44229 | K141: 21240.52613 | L141: 21526.05694 | M141: 21814.28934 | N141: 22106.26627 | O141: 22400.85811 | P141: 22699.09917 | Q141: 23007.33581 | R141: 23132.63158
B142: 2° ciclo (5° - 6° ano) | D142: 10953 | E142: 11515 | F142: =F148*F122 -> 11703.57146 | G142: 11874.71476 | H142: 11920.15722 | I142: 11946.849 | J142: 11974.47111 | K142: 10986.05515 | L142: 10023.43701 | M142: 10082.16086 | N142: 10160.27374 | O142: 10237.78824 | P142: 10316.78119 | Q142: 10397.20703 | R142: 10941.05263
B143: Total ensino basico | D143: =D141+D142 -> 36394 | E143: =SUM(E141:E142) -> 37090 | F143: =SUM(F141:F142) -> 36374.60568 | G143: 35475.8721 | H143: 34553.31484 | I143: 33713.93283 | J143: 32971.91341 | K143: 32226.58128 | L143: 31549.49394 | M143: 31896.4502 | N143: 32266.54001 | O143: 32638.64634 | P143: 33015.88036 | Q143: =SUM(Q141:Q142) -> 33404.54284 | R143: =SUM(R141:R142) -> 34073.68421
B144: Taxa bruta de escolarização (TBE - %)
B145: 1° ciclo (1° - 4° ano) | D145: =D141/D121 -> 1.165574747 | E145: 1.163134437 | F145: 1.121512602 | G145: 1.117320331 | H145: 1.11312436 | I145: 1.108924746 | J145: 1.104721539 | K145: 1.097191287 | L145: 1.091917264 | M145: 1.0866937 | N145: 1.081519876 | O145: 1.076395085 | P145: 1.071318632 | Q145: 1.066289837 | R145: 1.052631579
B146: 1° ciclo (1° - 4° ano) : verificação | E146: =(E126+E128)/2/(1-E135) -> 1.123554896 | F146: 1.121512602 | G146: 1.117320331 | H146: 1.11312436 | I146: 1.108924746 | J146: 1.104721539 | K146: 1.097191287 | L146: 1.091917264 | M146: 1.0866937 | N146: 1.081519876 | O146: 1.076395085 | P146: 1.071318632 | Q146: 1.066289837 | R146: 1.052631579
B147: 2° ciclo (5° - 6° ano) | D147: =D142/D122 -> 1.059386788 | E147: 1.090022719 | F147: 1.081960938 | G147: 1.082274404 | H147: 1.086119109 | I147: 1.087857312 | J147: 1.089578809 | K147: 1.086437416 | L147: 1.075822368 | M147: 1.062174553 | N147: 1.050917847 | O147: 1.039897231 | P147: 1.029105355 | Q147: 1.018535171 | R147: 1.052631579
B148: 2° ciclo (5° - 6° ano) : (verificação) | E148: =(E130+E132)/2/(1-E137) -> 1.089670158 | F148: 1.081960938 | G148: 1.082274404 | H148: 1.086119109 | I148: 1.087857312 | J148: 1.089578809 | K148: 1.086437416 | L148: 1.075822368 | M148: 1.062174553 | N148: 1.050917847 | O148: 1.039897231 | P148: 1.029105355 | Q148: 1.018535171 | R148: 1.052631579
B149: Total ensino basico | D149: =D143/(D121+D122) -> 1.131443139 | E149: 1.139407717 | F149: 1.108474956 | G149: 1.105339526 | H149: 1.103657686 | I149: 1.101366595 | J149: 1.099173698 | K149: 1.093501452 | L149: 1.086751884 | M149: 1.078821964 | N149: 1.071693238 | O149: 1.064674007 | P149: 1.05776056 | Q149: 1.050953055 | R149: 1.052631579
B150: Privado
B151: Numero de alunos
B152: 1° ciclo (1° - 4° ano) | D152: 185 | E152: 261 | F152: =F153*F141 -> 189.0166368 | G152: 185.4191112 | H152: 182.2248343 | I152: 179.4937687 | J152: 177.2391313 | K152: 183.4302816 | L152: 190.0910127 | M152: 196.887414 | N152: 203.8306812 | O152: 210.9123677 | P152: 218.1439424 | Q152: =Q153*Q141 -> 225.5897653 | R152: =R153*R141 -> 231.3263158
B153: % alunos 1° ciclo ( 1°a - 4°a) ano no privado | C153: 0.01 | D153: =D152/D141 -> 0.00727172674 | E153: =D153+($C153-D153)/($C$5-D$5) -> 0.007466603402 | F153: =E153+($C153-E153)/($C$5-E$5) -> 0.007661480063 | G153: 0.007856356725 | H153: 0.008051233386 | I153: 0.008246110047 | J153: 0.008440986709 | K153: 0.00863586337 | L153: 0.008830740032 | M153: 0.009025616693 | N153: 0.009220493354 | O153: 0.009415370016 | P153: 0.009610246677 | Q153: =P153+($C153-P153)/($C$5-P$5) -> 0.009805123339 | R153: =Q153+($C153-Q153)/($C$5-Q$5) -> 0.01
B154: 5°- 6° ano | D154: 93 | E154: 169 | F154: =F155*F142 -> 101.8962197 | G154: 104.6663388 | H154: 106.3518507 | I154: 107.8778447 | J154: 109.4180944 | K154: 101.5706084 | L154: 93.75131597 | M154: 95.38741184 | N154: 97.22169831 | O154: 99.06703526 | P154: 100.9435498 | Q154: =Q155*Q142 -> 102.8512695 | R154: =R155*R142 -> 109.4105263
B155: % alunos 2° ciclo ( 5°a - 6°a) ano no privado | C155: 0.01 | D155: =D154/D142 -> 0.008490824432 | E155: =D155+($C155-D155)/($C$5-D$5) -> 0.008598622687 | F155: =E155+($C155-E155)/($C$5-E$5) -> 0.008706420941 | G155: 0.008814219196 | H155: 0.008922017451 | I155: 0.009029815706 | J155: 0.009137613961 | K155: 0.009245412216 | L155: 0.009353210471 | M155: 0.009461008726 | N155: 0.00956880698 | O155: 0.009676605235 | P155: 0.00978440349 | Q155: =P155+($C155-P155)/($C$5-P$5) -> 0.009892201745 | R155: =Q155+($C155-Q155)/($C$5-Q$5) -> 0.01
B156: Total ensino basico no privado | D156: =D152+D154 -> 278 | E156: =E152+E154 -> 430 | F156: 290.9128564 | G156: 290.08545 | H156: 288.576685 | I156: 287.3716134 | J156: 286.6572257 | K156: 285.00089 | L156: 283.8423287 | M156: 292.2748258 | N156: 301.0523795 | O156: 309.979403 | P156: 319.0874922 | Q156: =Q152+Q154 -> 328.4410348 | R156: =R152+R154 -> 340.7368421
B157: % alunos ensino basico no privado | D157: =D156/D143 -> 0.007638621751 | E157: 0.01159342141 | F157: 0.007997691 | G157: 0.008176978684 | H157: 0.00835163533 | I157: 0.008523823514 | J157: 0.008693982123 | K157: 0.008843658829 | L157: 0.008996731586 | M157: 0.009163239923 | N157: 0.009330172353 | O157: 0.00949731186 | P157: 0.009664667087 | Q157: =Q156/Q143 -> 0.009832226605 | R157: =R156/R143 -> 0.01
B158: Publico
B159: Numero alunos
B160: 1° ciclo (1° - 4° ano) | D160: =D141-D152 -> 25256 | E160: =E141-E152 -> 25314 | F160: 24482.01758 | G160: 23415.73823 | H160: 22450.93279 | I160: 21587.59006 | J160: 20820.20316 | K160: 21057.09585 | L160: 21335.96592 | M160: 21617.40192 | N160: 21902.43559 | O160: 22189.94574 | P160: 22480.95523 | Q160: 22781.74604 | R160: 22901.30526
B161: 2° ciclo (5° - 6° ano) | D161: =D142-D154 -> 10860 | E161: 11346 | F161: 11601.67524 | G161: 11770.04842 | H161: 11813.80537 | I161: 11838.97115 | J161: 11865.05302 | K161: 10884.48454 | L161: 9929.685691 | M161: 9986.773446 | N161: 10063.05204 | O161: 10138.7212 | P161: 10215.83764 | Q161: 10294.35576 | R161: 10831.64211
B162: Total ensino basico | D162: =D160+D161 -> 36116 | E162: =E160+E161 -> 36660 | F162: 36083.69282 | G162: 35185.78665 | H162: 34264.73816 | I162: 33426.56121 | J162: 32685.25618 | K162: 31941.58039 | L162: 31265.65162 | M162: 31604.17537 | N162: 31965.48763 | O162: 32328.66694 | P162: 32696.79286 | Q162: =Q160+Q161 -> 33076.1018 | R162: =R160+R161 -> 33732.94737
B163: Numero professores em sala da aula
B164: 1° ciclo (1° - 4° ano) | D164: 664 | E164: =E172*E179/E183 -> 705.8597057 | F164: 700.3460791 | G164: 687.6584917 | H164: 677.3390358 | I164: 669.5869261 | J164: 694.0067721 | K164: 701.9031951 | L164: 711.1988641 | M164: 720.5800641 | N164: 730.0811863 | O164: 739.664858 | P164: 749.3651742 | Q164: =Q172*Q179/Q183 -> 759.3915348 | R164: =R172*R179/R183 -> 763.3768421
B165: 2° ciclo (5° - 6° ano) | D165: 447 | E165: =E173*E180/E185 -> 458.2217971 | F165: 477.2511175 | G165: 497.5674131 | H165: 518.1864693 | I165: 544.5978505 | J165: 707.7412994 | K165: 621.5728779 | L165: 543.8623968 | M165: 525.502446 | N165: 509.502051 | O165: 494.6374075 | P165: 480.8855973 | Q165: =Q173*Q180/Q185 -> 468.131213 | R165: =R173*R180/R185 -> 476.3916667
B166: Total ensino basico | D166: =D164+D165 -> 1111 | E166: =E164+E165 -> 1164.081503 | F166: 1177.597197 | G166: 1185.225905 | H166: 1195.525505 | I166: 1214.184777 | J166: 1401.748072 | K166: 1323.476073 | L166: 1255.061261 | M166: 1246.08251 | N166: 1239.583237 | O166: 1234.302265 | P166: 1230.250772 | Q166: =Q164+Q165 -> 1227.522748 | R166: =R164+R165 -> 1239.768509
B167: Alunos por professor
B168: 1° ciclo (1° - 4° ano) | D168: =D160/D164 -> 38.03614458 | E168: 35.8626506 | F168: 34.95702811 | G168: 34.05140562 | H168: 33.14578313 | I168: 32.24016064 | J168: 30 | K168: 30 | L168: 30 | M168: 30 | N168: 30 | O168: 30 | P168: 30 | Q168: 30 | R168: 30
B169: 2° ciclo (5° - 6° ano) | D169: 24.29530201 | E169: 24.76093471 | F169: 24.30937261 | G169: 23.65518342 | H169: 22.79836713 | I169: 21.73892376 | J169: 16.76467521 | K169: 17.51119607 | L169: 18.25771693 | M169: 19.0042378 | N169: 19.75075866 | O169: 20.49727952 | P169: 21.24380038 | Q169: 21.99032124 | R169: 22.73684211
B170: Total ensino basico | D170: 32.50765077 | E170: 31.49264026 | F170: 30.64179579 | G170: 29.68698752 | H170: 28.66081737 | I170: 27.53004473 | J170: 23.31749681 | K170: 24.13461115 | L170: 24.91165379 | M170: 25.36282719 | N170: 25.78728614 | O170: 26.19185579 | P170: 26.57733986 | Q170: 26.94540843 | R170: 27.20906938
B171: Numero de turmas
B172: 1° ciclo (1° - 4° ano) | D172: =D160/D174 -> 721.6 | E172: =E160/E174 -> 767.0909091 | F172: =F160/F174 -> 761.098992 | G172: =G160/G174 -> 747.3107946 | H172: 736.0961569 | I172: 727.6715752 | J172: 694.0067721 | K172: 701.9031951 | L172: 711.1988641 | M172: 720.5800641 | N172: 730.0811863 | O172: 739.664858 | P172: 749.3651742 | Q172: =Q160/Q174 -> 759.3915348 | R172: =R160/R174 -> 763.3768421
B173: 2° ciclo (5° - 6° ano) | D173: =D161/D176 -> 212.9411765 | E173: =E161/E176 -> 231.5510204 | F173: 254.9818735 | G173: 280.2392481 | H173: 306.8520875 | I173: 338.2563186 | J173: 395.5017673 | K173: 362.8161512 | L173: 330.989523 | M173: 332.8924482 | N173: 335.4350681 | O173: 337.9573734 | P173: 340.5279212 | Q173: =Q161/Q176 -> 343.145192 | R173: =R161/R176 -> 361.0547368
B174: Alunos por turma 1° ciclo | C174: 30 | D174: 35 | E174: 33 | F174: =IF(F$5<$C175, E174+($C174-$D174)/($C175-$D$5),$C174) -> 32.16666667 | G174: =IF(G$5<$C175, F174+($C174-$D174)/($C175-$D$5),$C174) -> 31.33333333 | H174: 30.5 | I174: 29.66666667 | J174: 30 | K174: 30 | L174: 30 | M174: 30 | N174: 30 | O174: 30 | P174: 30 | Q174: 30 | R174: 30
B175: Ano do meta intermediário | C175: 2022
B176: Alunos por turma 2° ciclo | C176: 30 | D176: 51 | E176: 49 | F176: =IF(F$5<$C177, E176+($C176-$D176)/($C177-$D$5),$C176) -> 45.5 | G176: =IF(G$5<$C177, F176+($C176-$D176)/($C177-$D$5),$C176) -> 42 | H176: 38.5 | I176: 35 | J176: 30 | K176: 30 | L176: 30 | M176: 30 | N176: 30 | O176: 30 | P176: 30 | Q176: 30 | R176: 30
B177: Ano do meta intermediário | C177: 2022
B178: Numero horas alunos por semana
B179: 1° ciclo (1° - 4° ano) | C179: 23.75 | D179: 18.75 | E179: =IF(E5<$C$181,D179,$C$179) -> 18.75 | F179: 18.75 | G179: 18.75 | H179: 18.75 | I179: 18.75 | J179: 23.75 | K179: 23.75 | L179: 23.75 | M179: 23.75 | N179: 23.75 | O179: 23.75 | P179: 23.75 | Q179: 23.75 | R179: 23.75
B180: 2° ciclo (5° - 6° ano) | C180: 23.75 | D180: 20.41666667 | E180: =IF(E5<$C$181,D180,$C$180) -> 20.41666667 | F180: 20.41666667 | G180: 20.41666667 | H180: 20.41666667 | I180: 20.41666667 | J180: 23.75 | K180: 23.75 | L180: 23.75 | M180: 23.75 | N180: 23.75 | O180: 23.75 | P180: 23.75 | Q180: 23.75 | R180: 23.75
B181: Ano de arranque | C181: 2022
B182: Numero horas professores em classe
B183: 1° ciclo (1° - 4° ano) | C183: 23.75 | D183: =(D179*D172)/D164 -> 20.37650602 | E183: =IF(E5<$C$184,D183,$C$183) -> 20.37650602 | F183: =IF(F5<$C$184,E183,$C$183) -> 20.37650602 | G183: 20.37650602 | H183: 20.37650602 | I183: 20.37650602 | J183: 23.75 | K183: 23.75 | L183: 23.75 | M183: 23.75 | N183: 23.75 | O183: 23.75 | P183: 23.75 | Q183: 23.75 | R183: 23.75
B184: Ano de arranque | C184: 2022
B185: 2° ciclo (5° - 6° ano) | C185: 18 | D185: =(D180*D173)/D165 -> 9.726060447 | E185: =IF(E$5<$C$186,D185+($C185-D185)/($C$186-D$5),$C$185) -> 10.31705613 | F185: =IF(F5<$C$186,E185+($C185-E185)/($C$186-E$5),$C$185) -> 10.90805181 | G185: 11.49904749 | H185: 12.09004318 | I185: 12.68103886 | J185: 13.27203454 | K185: 13.86303022 | L185: 14.45402591 | M185: 15.04502159 | N185: 15.63601727 | O185: 16.22701295 | P185: 16.81800864 | Q185: 17.40900432 | R185: 18
B186: Ano de referencia | C186: 2030
B187: Necessidade de professores en classe
B188: Taxa de atrito de professore por ano | C188: 0.015
B189: Numero professores após atrito | E189: =E191+E190 -> 1094.335 | F189: =F191+F190 -> 1146.62028 | G189: 1159.933239 | H189: 1167.447516 | I189: 1177.592623 | J189: 1195.972005 | K189: 1380.72185 | L189: 1303.623932 | M189: 1236.235342 | N189: 1227.391272 | O189: 1220.989489 | P189: 1215.787731 | Q189: =Q191+Q190 -> 1211.79701 | R189: =R191+R190 -> 1209.109907
B190: 1° ciclo (1° - 4° ano) | E190: =D164*(1-$C$188) -> 654.04 | F190: =E164*(1-$C$188) -> 695.2718101 | G190: 689.8408879 | H190: 677.3436143 | I190: 667.1789502 | J190: 659.5431223 | K190: 683.5966705 | L190: 691.3746471 | M190: 700.5308812 | N190: 709.7713632 | O190: 719.1299685 | P190: 728.5698851 | Q190: =P164*(1-$C$188) -> 738.1246966 | R190: =Q164*(1-$C$188) -> 748.0006618
B191: 2° ciclo (5° - 6° ano) | E191: =D165*(1-$C$188) -> 440.295 | F191: 451.3484701 | G191: 470.0923508 | H191: 490.1039019 | I191: 510.4136723 | J191: 536.4288828 | K191: 697.12518 | L191: 612.2492847 | M191: 535.7044608 | N191: 517.6199093 | O191: 501.8595202 | P191: 487.2178464 | Q191: =P165*(1-$C$188) -> 473.6723134 | R191: =Q165*(1-$C$188) -> 461.1092448
B192: Novos professores | E192: =SUM(E193:E194) -> 69.74650279 | F192: =SUM(F193:F194) -> 30.97691639 | G192: 27.47506234 | H192: =SUM(H193:H194) -> 28.0825674 | I192: 36.59215417 | J192: 205.7760665 | K192: 18.30652455 | L192: 19.824217 | M192: 20.04918297 | N192: 20.30982312 | O192: 20.53488947 | P192: 20.79528916 | Q192: =SUM(Q193:Q194) -> 21.26683819 | R192: =SUM(R193:R194) -> 30.65860214
B193: 1° ciclo (1° - 4° ano) | E193: =IF((E164-E190)>0,E164-E190,0) -> 51.8197057 | F193: =IF((F164-F190)>0,F164-F190,0) -> 5.074268998 | G193: =IF((G164-G190)>0,G164-G190,0) -> 0 | H193: =IF((H164-H190)>0,H164-H190,0) -> 0 | I193: =IF((I164-I190)>0,I164-I190,0) -> 2.407975913 | J193: 34.46364983 | K193: 18.30652455 | L193: 19.824217 | M193: 20.04918297 | N193: 20.30982312 | O193: 20.53488947 | P193: 20.79528916 | Q193: =IF((Q164-Q190)>0,Q164-Q190,0) -> 21.26683819 | R193: =IF((R164-R190)>0,R164-R190,0) -> 15.37618031
B194: 2° ciclo (5° - 6° ano) | E194: =IF((E165-E191)>0,E165-E191,0) -> 17.92679708 | F194: =IF((F165-F191)>0,F165-F191,0) -> 25.9026474 | G194: 27.47506234 | H194: 28.0825674 | I194: 34.18417826 | J194: 171.3124167 | K194: 0 | L194: 0 | M194: 0 | N194: 0 | O194: 0 | P194: 0 | Q194: =IF((Q165-Q191)>0,Q165-Q191,0) -> 0 | R194: =IF((R165-R191)>0,R165-R191,0) -> 15.28242183
B195: Remuneração media professor (exclusão horas extras)
B196: Remuneração anual media em PIB / habitante | D196: =D197/D$15 -> 1.506528004 | E196: =E197/E$15 -> 1.520801328 | F196: 1.532624645 | G196: 1.542161614 | H196: 1.549493169 | I196: 1.554848644 | J196: 1.558144786 | K196: 1.559760587 | L196: 1.55963875 | M196: 1.557936788 | N196: 1.554665207 | O196: 1.549920572 | P196: 1.543676775 | Q196: 1.535927519 | R196: 1.526685067
B197: Remuneração anual media (dobras) | C197: 95000 | D197: 59047.72552 | E197: =D197+($C197-$D197)/($C$5-$D$5) -> 61615.74512 | F197: =E197+($C197-$D197)/($C$5-$D$5) -> 64183.76473 | G197: 66751.78433 | H197: 69319.80394 | I197: 71887.82355 | J197: 74455.84315 | K197: 77023.86276 | L197: 79591.88236 | M197: 82159.90197 | N197: 84727.92158 | O197: 87295.94118 | P197: 89863.96079 | Q197: 92431.98039 | R197: 95000
B198: Massa salarial professores (exclusão horas extras) (000 de Dbs) | D198: =(D197*D166)/10^3 -> 65602.02305 | E198: =(E197*E166)/10^3 -> 71725.74918 | F198: 75582.62141 | G198: 79115.94399 | H198: 82873.59362 | I198: 87285.10098 | J198: 104368.3346 | K198: 101939.2394 | L198: 99892.68824 | M198: 102378.0169 | N198: 105027.3113 | O198: 107749.578 | P198: 110555.2071 | Q198: 113462.3586 | R198: 117778.0083
B199: Horas extras (000 de Dbs) | D199: 20835.62039 | E199: =E200*E201 -> 21542.44792 | F199: =F200*F201 -> 21429.89873 | G199: 21135.31311 | H199: 20815.42096 | I199: 20563.98531 | J199: 23003.14263 | K199: 20956.70806 | L199: 19090.79797 | M199: 18119.76799 | N199: 17140.00429 | O199: 16132.48885 | P199: 15097.0871 | Q199: 14034.16112 | R199: 13086.44537
B200: Horas extras em % do massa salarial incluindo horas extras | C200: 0.1 | D200: =D199/(D198+D199) -> 0.241047992 | E200: =D200+($C200-D200)/($C$5-D$5) -> 0.2309731355 | F200: 0.2208982789 | G200: 0.2108234223 | H200: 0.2007485657 | I200: 0.1906737092 | J200: 0.1805988526 | K200: 0.170523996 | L200: 0.1604491394 | M200: 0.1503742829 | N200: 0.1402994263 | O200: 0.1302245697 | P200: 0.1201497131 | Q200: =P200+($C200-P200)/($C$5-P$5) -> 0.1100748566 | R200: =Q200+($C200-Q200)/($C$5-Q$5) -> 0.1
B201: Massa salarial professores ensino basico incluindo horas extras (000 de Dbs) | D201: =D198/(1-D200) -> 86437.64344 | E201: =E198/(1-E200) -> 93268.1971 | F201: =F198/(1-F200) -> 97012.52015 | G201: 100251.2571 | H201: 103689.0146 | I201: 107849.0863 | J201: 127371.4772 | K201: 122895.9475 | L201: 118983.4862 | M201: 120497.7849 | N201: 122167.3156 | O201: 123882.0668 | P201: 125652.2942 | Q201: =Q198/(1-Q200) -> 127496.5197 | R201: =R198/(1-R200) -> 130864.4537
B202: Remuneração anual media (com horas extras) em PIB / habitante | D202: =D203/D$15 -> 1.985010894 | E202: =E203/E$15 -> 1.977565932 | F202: 1.967168861 | G202: 1.954140122 | H202: 1.938680498 | I202: 1.921164135 | J202: 1.901565297 | K202: 1.880416768 | L202: 1.857706094 | M202: 1.833674236 | N202: 1.808379864 | O202: 1.781977874 | P202: 1.75447664 | Q202: =Q203/Q$15 -> 1.725906421 | R202: =R203/R$15 -> 1.696316741
B203: Remuneração anual media (com horas extras) (dobras) | D203: =(D201*10^3)/D166 -> 77801.65926 | E203: =(E201*10^3)/E166 -> 80121.70701 | F203: 82381.75195 | G203: 84584.09211 | H203: 86730.90966 | I203: 88824.27812 | J203: 90866.16902 | K203: 92858.4581 | L203: 94802.93107 | M203: 96701.28895 | N203: 98555.153 | O203: 100366.0694 | P203: 102135.5134 | Q203: 103864.8937 | R203: 105555.5556
B204: Massa salarial outros pessoal ensino basico (000 de Dbs) | D204: 16848.90786 | E204: =E205*E201 -> 15127.1782 | F204: =F205*F201 -> 15643.50169 | G204: 16071.75019 | H204: 16525.64406 | I204: 17087.53372 | J204: 20061.21144 | K204: 19241.06882 | L204: 18516.94781 | M204: 18639.62159 | N204: 18783.3225 | O204: 18930.80266 | P204: 19083.49244 | Q204: 19244.03144 | R204: 19629.66806
B205: Massa salarial outros pessoal em % das massa salarial professores em classe | C205: 0.15 | D205: =D204/(D201+D204) -> 0.1631277998 | E205: =D205+($C205-D205)/($C$5-D$5) -> 0.1621900998 | F205: 0.1612523998 | G205: 0.1603146998 | H205: 0.1593769999 | I205: 0.1584392999 | J205: 0.1575015999 | K205: 0.1565638999 | L205: 0.1556261999 | M205: 0.1546884999 | N205: 0.1537507999 | O205: 0.1528131 | P205: 0.1518754 | Q205: =P205+($C205-P205)/($C$5-P$5) -> 0.1509377 | R205: =Q205+($C205-Q205)/($C$5-Q$5) -> 0.15
... 285 more rows

Sheet Conseils
A1: 0 | B1: Cette présentation guidée porte sur l’exemple du modèle de simulation de Sao Tomé-et-Principe. Les cellules apparaîtront en surbrillance et un encadré vous exposera les différentes étapes. Cliquez sur l’encadré pour passer au conseil suivant. Vous pouvez utiliser à tout moment les boutons situés en haut à droite pour parcourir les conseils, mettre en pause ou redémarrer la présentation. Ce modèle est un exemple type d’outil de projection axé sur les besoins qui peut être élaboré afin d’évaluer la viabilité pratique et financière des politiques envisagées. Il est généralement conçu par la Division de la planification du Ministère de l’éducation avec une assistance technique externe. Il offre une grande souplesse dans la projection des besoins et l’estimation des coûts. | C1: Ainsi s’achève cette présentation guidée. Ce modèle permet d’estimer les dépenses publiques à l’aide de projections et d’anticiper les conséquences des politiques d’EPE sur les coûts en fonction de différents éléments : population cible, effectifs prévus, besoins en matière de formation et de rémunération des enseignants, etc. Il convient de l’adapter aux spécificités de votre contexte national, à la structure du sous-secteur de l’EPE, aux politiques envisagées, etc. Comme indiqué dans l’outil intitulé « Ajustement des composantes relatives à l’EPE dans le plan sectoriel d’éducation après la simulation », la valeur du modèle de simulation réside non seulement dans le calcul des coûts eux-mêmes, mais également dans les indications apportées en matière d’accessibilité financière et de faisabilité opérationnelle, lesquelles orienteront l’ajustement des politiques et des cibles durant l’élaboration du plan sectoriel d’éducation. Vous pouvez recommencer, parcourir les conseils ou fermer ce fichier. Cliquez pour fermer. | G1: -1
A2: B:B | B2: La première colonne indique les variables qui sont estimées. Nous y reviendrons en détail dans un instant. | E2: B:B | G2: B:b
A3: C:C | B3: La colonne suivante indique les « hypothèses » relatives à chaque variable. Ces hypothèses sont exprimées sous forme de taux de croissance annuel sur la période donnée ou sous forme de valeur cible de la variable concernée. L’année cible correspond par défaut à la fin du Plan stratégique du secteur de l’éducation ; lorsque l’année cible est fixée avant cette échéance, celle-ci apparaît en bleu dans cette colonne. | E3: C:C | G3: C:c
A4: D:E | B4: Les colonnes suivantes correspondent aux données de référence. Les cellules en vert contiennent les données saisies manuellement (à partir du système d’information sur la gestion des établissements d’enseignement [SIGE] ou de l’analyse du secteur de l’éducation), et les cellules en blanc correspondent aux calculs. | E4: D:E | G4: d:e
A5: F:R | B5: Les autres colonnes indiquent le nombre d’années entre l’année de référence et la dernière année du Plan stratégique du secteur de l’éducation. | E5: F:R | G5: f:r
A6: 9:41 | B6: Le premier « bloc » du modèle de simulation concerne la projection des ressources consacrées au secteur de l’éducation. Ces éléments ne sont pas du ressort du Ministère de l’éducation mais ils peuvent déterminer le budget national affecté à la mise en œuvre du futur plan. Des chiffres et des projections actualisés sont disponibles auprès du Ministère des finances, du budget ou de la planification. Ces données n’influenceront pas les choix de politiques du Ministère, mais elles permettront d’envisager différents scénarios (par exemple, en matière de croissance économique nationale). | E6: 9:41 | G6: 9:41
A7: 9:10 | B7: Lorsque Sao Tomé-et-Principe a réalisé sa simulation, l’augmentation prévue du PIB était de 5,5 % par an. Si vous deviez réaliser cet exercice, vous pourriez obtenir ces chiffres auprès du Ministère des finances ou de l’Institut national de la statistique. | E7: 9:10 | G7: 9:10
A8: 20:20 | B8: Les ressources nationales du pays sont exprimées en pourcentage du PIB afin de refléter la capacité de l’État à utiliser les ressources générées par l’économie grâce à la fiscalité (impôts sur le revenu, impôts sur les sociétés, TVA, etc.). Ce montant résulte de discussions avec le Ministère des finances ou du budget, et peut varier en fonction des niveaux d’imposition (par exemple, impôt plus ou moins élevé sur les sociétés) ou de l’assiette fiscale (par exemple, nouveaux gisements pétroliers). Le Ministère des finances/du budget dispose peut-être d’un plan de politique publique macroéconomique visant à augmenter le niveau d’imposition, et ainsi accroître les recettes publiques, ou à faire diminuer les impôts pour stimuler l’investissement et encourager la création d’entreprises, par exemple. En l’absence d’objectifs explicites, il est généralement prévu que le montant des recettes nationales en pourcentage du PIB reste stable.Ici, on prévoit une hausse de 14,9 % à 18 %. | E8: 20:20 | G8: 20:20
A9: 19:19 | B9: Les ressources nationales sont donc calculées en multipliant le PIB par ce pourcentage au moyen d’une formule simple. | E9: 19:19 | G9: 19:19
A10: 23:24 | B10: Les ressources externes, qui devraient passer de 13,7 % à 6 %, sont également exprimées en pourcentage du PIB (dépendance à l’aide extérieure). | E10: 23:24 | G10: 23:24
A11: 28:28 | B11: Le total des recettes de l’État est donc calculé en additionnant les ressources nationales et les ressources externes. | E11: 28:28 | G11: 28:28
A12: 29:38 | B12: Ici, les projections des ressources totales (et ensuite celles de l’éducation) sont établies à partir des dépenses publiques réelles – et non des recettes –, mais on suppose qu’à terme (en 2022 dans cet exemple) la réduction du déficit budgétaire permettra de porter les ressources au niveau des recettes. En l’absence de déficit budgétaire (important), les projections des ressources sont souvent établies simplement à partir des recettes prévues. | E12: 29:38 | G12: 29:38
A13: 39:41 | B13: Enfin, les ressources publiques consacrées au fonctionnement et au développement du système d’éducation sont estimées sous forme de pourcentage du total des dépenses publiques (de 17,8 % en 2016 à 20 % en 2022). Ces ressources sont affectées à tous les niveaux d’enseignement. Les sections suivantes du modèle permettront d’estimer les dépenses qui seront consacrées à chaque sous-secteur afin de les comparer au budget prévu. | E13: 39:41 | G13: 39:41
A14: 43:43 | B14: Avant d’aller plus loin, il est important de comprendre que les dépenses consacrées aux différents niveaux d’enseignement sont généralement fonction des effectifs estimés dans ces niveaux (primaire, premier et second cycles du secondaire, voire enseignement supérieur). Les projections reposent sur des objectifs ; lorsque ces modèles ont été conçus pour la première fois, les objectifs fixés portaient souvent sur l’enseignement primaire universel (programme Éducation pour tous et objectifs du Millénaire pour le développement), puis ils se sont progressivement orientés vers le premier cycle du secondaire (objectif de développement durable 4). Les effectifs devraient « fluctuer » entre un niveau d’enseignement et le suivant en fonction des hypothèses relatives aux taux de rétention (ou persévérance) et de transition entre les différents cycles d’enseignement. Toutefois, l’éducation de la petite enfance (EPE) n’étant pas toujours obligatoire, il est impossible de calculer les effectifs du primaire à partir des effectifs de l’EPE*. Les effectifs sont donc généralement calculés séparément en fonction des objectifs fixés dans la politique nationale, et exprimés en taux de scolarisation du groupe d’âge cible. * Les effectifs de l’EPE sont parfois calculés à partir de ceux du primaire, en utilisant le pourcentage d’élèves de première année ayant suivi un programme d’EPE – en particulier lorsque les données relatives à l’EPE ne sont pas fiables ou sont incomplètes (par exemple, absence de données sur les prestataires de services d’EPE privés ou communautaires, mais pourcentage connu d’élèves de première année ayant suivi un programme d’EPE grâce aux données collectées dans le SIGE au niveau des établissements primaires). | E14: 43:43 | G14: 43:43
A15: 46:47 | B15: La première étape relative à l’enseignement préscolaire (comme pour les autres niveaux d’enseignement) consiste à estimer le groupe d’âge cible ou à utiliser les projections existantes. Ici, les estimations de population ont été fournies par l’Institut national de la statistique et utilisées telles quelles. | E15: 46:47 | G15: 46:47
A16: 48:51 | B16: L’étape suivante consiste à établir des hypothèses ou à fixer des taux de scolarisation cibles. Ici, la priorité retenue vise à universaliser l’enseignement préscolaire et à le rendre obligatoire. Afin de concentrer les ressources et les efforts, la durée de l’enseignement préscolaire sera ramenée de trois à deux ans, et tous les enfants âgés de 4 à 5 ans devront pouvoir bénéficier d’un enseignement préscolaire à l’horizon 2022 (contre 59,3 % en 2016). Parallèlement, il est prévu de ne plus accueillir les enfants de moins de 4 ans dans les établissements publics, afin que les effectifs d’enfants déjà scolarisés mais pas assez âgés pour leur niveau disparaissent progressivement du système public d’ici à 2022. Actuellement, il n’est pas prévu de mettre en place des services d’enseignement préscolaire ni des activités d’éducation parentale au niveau communautaire, et ce afin de mettre l’accent sur la prestation de services publics. | E16: 48:51 | G16: 48:51
A17: 48:48,50:50,52:52,57:58 | B17: La projection des taux de scolarisation correspondant aux objectifs fixés permet de calculer le nombre d’élèves de chaque groupe d’âge ainsi que le nombre total d’élèves dans l’enseignement préscolaire. | E17: 48:48,50:50,52:52,57:58 | G17: 48:48,50:50,52:52,57:58
A18: 59:61 | B18: On calcule ensuite le nombre d’élèves scolarisés dans l’enseignement privé (et/ou communautaire), car ces derniers ne constituent pas une charge financière pour l’État (ou, du moins, ils représentent un coût différent). Ici, la politique vise à réduire la proportion (et le nombre) d’élèves fréquentant des écoles et des centres non étatiques afin de mieux gérer et superviser ces prestataires de services. Si votre système inclut des prestataires de services communautaires, vous pouvez comptabiliser les élèves qui fréquentent ces derniers avec ceux de l’enseignement privé ou séparément, selon la même méthode de calcul. Bien que cette option n’ait pas été retenue ici, veuillez noter qu’il est également possible de soutenir les prestataires de services non étatiques, par exemple en finançant la rémunération des enseignants et/ou en versant des subventions proportionnelles au nombre d’élèves. Le calcul des coûts correspondants apparaîtrait alors ici. Par exemple, pour calculer le coût d’une subvention proportionnelle au nombre d’élèves, il faudra multiplier le taux de scolarisation dans les établissements/centres privés ou communautaires par le montant de cette subvention. Les coûts correspondants seront ajoutés au total lors de la dernière étape de projection des coûts du sous-secteur. | E18: 59:61 | G18: 59:61
A19: 62:64 | B19: Le nombre d’élèves scolarisés dans le système public est ensuite calculé en déduisant du nombre d’élèves à scolariser le nombre d’élèves fréquentant des établissements/centres privés (et/ou communautaires). Les calculs suivants concernent le coût des enfants scolarisés dans le système public. | E19: 62:64 | G19: 62:64
A20: 66:70 | B20: Le principal poste de dépenses de l’enseignement préscolaire, comme des autres niveaux d’enseignement, est la rémunération des enseignants/éducateurs/assistants… Les cibles sont exprimées en taux d’encadrement, c’est-à-dire le nombre d’élèves par adulte de différentes catégories/fonctions. Ici, la politique vise à assurer la présence d’un moniteur ou d’un auxiliaire pour 17 élèves (ligne 68) et à faire passer le nombre d’enseignants disponibles de 1 pour 166 élèves à 1 pour 75 (ligne 67). | E20: 66:70 | G20: 66:70
A21: 73:79 | B21: On calcule ensuite le nombre de nouveaux enseignants et moniteurs/auxiliaires à recruter (et à former au cas où les effectifs de professionnels formés seraient insuffisants). Ces chiffres permettent d’évaluer la faisabilité de la politique (« Les instituts de formation des enseignants sont-ils en mesure de former autant de professionnels ? ») et de calculer le coût de formation des enseignants (à un stade ultérieur). | E21: 73:79 | G21: 73:79
A22: 80:80,82:82 | B22: On estime ensuite le salaire moyen d’un enseignant/éducateur/moniteur (c.-à-d. la rémunération moyenne perçue individuellement). Ici, la cible établie porte sur la rémunération annuelle d’un enseignant. Il est également possible de prévoir une augmentation annuelle des salaires ou, dans les rares cas où la rémunération par enseignant est trop élevée, de geler les salaires pendant quelques années. Veuillez noter qu’il est possible de définir différents salaires et de fixer des cibles différenciées selon les types d’enseignants ou leurs catégories/niveaux : si votre système d’EPE se compose d’enseignants fonctionnaires et vacataires, leurs salaires sont probablement très différents. Dans ce cas, ils seront estimés séparément. Ce point est particulièrement important lorsqu’un choix de politique modifie sensiblement les proportions respectives de ces deux groupes en vue de : titulariser tous les enseignants vacataires dans la fonction publique, ou recruter uniquement des enseignants vacataires afin d’appuyer le développement de l’EPE (par exemple). Dans la mesure du possible, le salaire moyen doit correspondre au coût total de rémunération des enseignants incluant non seulement le salaire qui leur est versé, mais également les coûts liés aux avantages perçus (sécurité sociale, cotisation retraite, etc.). Si cela n’est pas possible, ces coûts seront inclus implicitement dans les frais administratifs (comme c’est le cas ici). | E22: 80:80,82:82 | G22: 80:80,82:82
A23: 81:81 | B23: Ici, la rémunération des enseignants est également exprimée en multiples du PIB par habitant à des fins d’information/de vérification, le but étant de comparer leur niveau de rémunération par rapport à la richesse moyenne du pays. Ici, la politique salariale a pour effet une moindre rémunération des éducateurs et des moniteurs par rapport aux autres groupes de population (leur salaire est passé de 1,6 fois à 1,3 fois le PIB par habitant, car les salaires ont progressé moins rapidement que l’augmentation prévue du PIB par habitant). Cette étape n’est pas indispensable, mais elle apporte des informations et permet de vérifier que l’évolution prévue des salaires est « raisonnable ». | E23: 81:81 | G23: 81:81
A24: 83:85 | B24: On calcule ensuite le total de la masse salariale des enseignants, des moniteurs et des assistants (c.-à-d. le montant total de toutes les rémunérations qui leur sont versées) en multipliant le salaire annuel moyen par le nombre d’enseignants, de moniteurs et d’assistants. S’il existe différentes catégories d’enseignants (par exemple, fonctionnaires et vacataires), on multiplie leurs salaires respectifs par leurs effectifs estimés, puis on additionne la masse salariale de chaque catégorie afin d’obtenir la masse salariale totale. | E24: 83:85 | G24: 83:85
A25: 86:88 | B25: Dans ce cas, l’augmentation des effectifs disponibles et la meilleure gestion du personnel devraient entraîner la disparition des heures supplémentaires (rémunération perçue au titre des heures de travail effectuées au-delà du temps de travail contractuel), lesquelles représentent 6,6 % de la rémunération totale des enseignants pour l’année de référence. Cette étape n’est pas indispensable si le volume d’heures supplémentaires est peu important dans votre système. | E25: 86:88 | G25: 86:88
A26: 89:90 | B26: Le salaire du personnel préscolaire (par exemple, personnel administratif ou agents d’entretien) est calculé en pourcentage du total (lequel devrait diminuer) puis additionné afin d’obtenir la masse salariale totale. | E26: 89:90 | G26: 89:90
A27: 92:100 | B27: Les dépenses administratives et pédagogiques (administration générale, supports d’enseignement et d’apprentissage, inspecteurs…) sont estimées en pourcentage de la masse salariale. Ainsi, il est possible d’évaluer ces dépenses sans entrer dans le détail à ce stade (projection globale à long terme). Cette estimation est justifiée par le fait que la masse salariale est un indicateur indirect du nombre de classes. Plus le nombre d’élèves scolarisés est élevé, plus les besoins augmentent en matière de recrutement d’enseignants, d’achat de matériel pédagogique, de gestion du personnel enseignant, etc. Ici, l’amélioration de la qualité de l’apprentissage préscolaire grâce à un environnement d’apprentissage plus favorable et un meilleur équipement des écoles devrait entraîner une augmentation des dépenses administratives et pédagogiques, qui passeraient d’un niveau quasi nul pour l’année de référence à environ 5 % de la masse salariale. En revanche, les dépenses administratives au niveau central devraient légèrement baisser en pourcentage de la masse salariale totale (sous l’effet des économies d’échelle) malgré une hausse prévue en valeur nominale. | E27: 92:100 | G27: 92:100
A28: 101:107 | B28: Le Ministère a prévu d’augmenter l’enveloppe allouée à la prise en charge des enfants présentant des besoins éducatifs particuliers. La politique d’éducation inclusive prévoit l’accueil de tous les enfants dans la même salle de classe, quels que soient leur handicap, leur incapacité ou leur vulnérabilité. La politique relative aux besoins éducatifs particuliers prévoit le versement de subventions aux établissements scolaires en vue de financer les coûts additionnels engendrés par la situation particulière de ces enfants. D’après les estimations, d’ici à 2030, les enfants présentant des besoins éducatifs particuliers devraient représenter environ 5 % du total des élèves scolarisés dans l’enseignement préscolaire, contre moins de 1 % pour l’année de référence. | E28: 101:107 | G28: 101:107
A29: 108:113 | B29: En l’absence de bourses dans l’enseignement préscolaire, les « dépenses sociales » concernent ici les programmes d’alimentation scolaire. Elles sont calculées directement en multipliant le nombre d’élèves par le nombre de repas servis chaque année et le coût unitaire d’un repas. | E29: 108:113 | G29: 108:113
A30: 114:117 | B30: Enfin, on calcule le total des coûts consacrés à l’enseignement préscolaire en additionnant la masse salariale, les dépenses pédagogiques et administratives, le coût de la prise en charge des besoins éducatifs particuliers et les frais de restauration scolaire. Le coût unitaire, c’est-à-dire le coût total divisé par le nombre d’élèves scolarisés dans l’enseignement public, est calculé et exprimé en pourcentage du PIB par habitant afin de mettre en perspective l’augmentation totale. Nous pouvons observer ici que les dépenses totales consacrées à l’enseignement préscolaire devraient augmenter de 71 % (passant de 51 millions à 87,6 millions de dobras). Le coût unitaire augmentera également de 41 % en valeur nominale, toutefois il baissera en pourcentage du PIB par habitant sous l’effet de la diminution en pourcentage du salaire des enseignants. | E30: 114:117 | G30: 114:117
A31: 118:433 | B31: Le modèle de simulation porte également sur d’autres niveaux d’enseignement, dans une optique de conception stratégique sectorielle. Ces lignes sont masquées ici afin de mettre l’accent sur l’enseignement préscolaire. | E31: 118:433 | G31: 118:433
A32: 434:436 | B32: Parmi les dépenses consacrées aux autres niveaux d’enseignement, celles relatives à la formation des enseignants/éducateurs préscolaires présentent un intérêt particulier pour la politique d’EPE. Ici, la formation initiale des enseignants est assurée par l’institut de formation supérieure en éducation et communication (ISEC). | E32: 434:436 | G32: 434:436
A33: 438:438,444:448 | B33: Le nombre requis d’enseignants diplômés de l’ISEC est estimé en fonction des besoins en nouveaux enseignants calculés ci-dessus. On calcule d’abord le nombre de diplômés nécessaires pour répondre aux besoins en nouveaux enseignants d’ici à la 5e année, puis on estime le nombre moyen qui sera nécessaire sur les cinq prochaines années. | E33: 438:438,444:448 | G33: 438:438,444:448
A34: 474:487 | B34: Le coût de formation des enseignants (tous niveaux confondus) est calculé par composante : 1) salaire des enseignants de l’ISEC*, 2) autres frais de personnel en pourcentage de la masse salariale des enseignants de l’ISEC, 3) transferts et dépenses administratives et pédagogiques en coût unitaire par stagiaire, et 4) bourses allouées aux stagiaires défavorisés (environ 50 %). On obtient ainsi le coût de formation des enseignants. Une partie de ce coût peut être imputée à l’EPE, par exemple au prorata du nombre d’enseignants stagiaires dans l’EPE (ligne 438). * Dans les faits, l’estimation de la masse salariale de l’ISEC à partir de cette composante est discutable, car cette dernière n’est pas liée au nombre d’enseignants en formation (lequel décroît vers la fin de la période prévue). Le coût unitaire par stagiaire devrait donc passer de 1,9 à 1,5 avant de remonter à 5,5. Une hypothèse fondée sur une augmentation contrôlée du coût unitaire, qui serait alors multiplié par le nombre de stagiaires, semble une solution plus adaptée. | E34: 474:487 | G34: 474:487
A35: 489:500 | B35: Le dernier type de coûts à estimer concerne les coûts d’investissement, en particulier dans les infrastructures. | E35: 489:500 | G35: 489:500
A36: 493:494 | B36: Le nombre de salles de classe est estimé à partir du nombre de salles de classe d’enseignement préscolaire calculé ci-dessus et d’un nombre déterminé de classes par salle. | E36: 493:494 | G36: 493:494
A37: 492:492,494:495 | B37: Le coût total de construction de nouvelles salles de classe est calculé en multipliant le nombre de nouvelles salles de classe nécessaires par le coût unitaire d’une salle de classe (équipements inclus). | E37: 492:492,494:495 | G37: 492:492,494:495
A38: 496:499 | B38: Les frais d’entretien sont estimés à partir du pourcentage de salles de classe susceptibles de requérir des travaux d’entretien chaque année et du prix moyen de ces travaux. | E38: 496:499 | G38: 496:499
A39: 500:500 | B39: Pour finir, on calcule le total des dépenses d’investissement. Ici, les dépenses d’investissement portent uniquement sur les salles de classe (équipements inclus), mais elles peuvent également couvrir (notamment dans les autres niveaux) les manuels et le matériel d’apprentissage, les équipements informatiques, etc. | E39: 500:500 | G39: 500:500
